fUSD/lending_fUSD_20250313
["ID","MTS","AMOUNT","RATE_DAILY","PERIOD"]
[356106878,1741909874449,-294.70631534,0.00025136,3]
[356106879,1741909874459,-1173.33,0.00025136,3]
[356106880,1741909874470,-1194.67,0.00025136,3]
[356106881,1741909874479,-500.0,0.00025136,3]
[356106882,1741909874490,-500.0,0.00025136,3]
[356106883,1741909874499,-500.0,0.00025136,3]
[356106884,1741909874509,-500.0,0.00025136,3]
[356106885,1741909874520,-500.0,0.00025136,3]
[356106886,1741909874530,-500.0,0.00025136,3]
[356106887,1741909874541,-647.14,0.00025136,3]
[356106888,1741909874550,-610.98,0.00025136,3]
[356106889,1741909874560,-1389.09,0.00025136,3]
[356106890,1741909874569,-500.0,0.00025136,3]
[356106891,1741909874579,-558.82,0.00025136,3]
[356106892,1741909874589,-535.09,0.00025136,3]
[356106893,1741909874598,-1705.22,0.00025136,3]
[356106894,1741909874608,-500.0,0.00025136,3]
[356106895,1741909874617,-792.15,0.00025136,3]
[356106896,1741909874628,-1894.67,0.00025136,3]
[356106897,1741909874648,-500.0,0.00025136,3]
[356106898,1741909874661,-1930.42,0.00025136,3]
[356106899,1741909874671,-573.45,0.00025136,3]
[356106900,1741909874681,-4252.22,0.00025136,3]
[356106901,1741909874690,-1350.01,0.00025136,3]
[356106902,1741909874700,-500.0,0.00025136,3]
[356106903,1741909874710,-500.0,0.00025136,3]
[356106904,1741909874720,-957.24,0.00025136,3]
[356106905,1741909874739,-813.96,0.00025136,3]
[356106906,1741909874749,-500.0,0.00025136,3]
[356106907,1741909874759,-659.78,0.00025136,3]
[356106908,1741909874768,-666.36,0.00025136,3]
[356106909,1741909874778,-500.0,0.00025136,3]
[356106910,1741909874787,-500.0,0.00025136,3]
[356106911,1741909874797,-1214.54,0.00025136,3]
[356106912,1741909874807,-500.0,0.00025136,3]
[356106913,1741909874818,-500.0,0.00025136,3]
[356106914,1741909874828,-740.67,0.00025136,3]
[356106915,1741909874839,-500.0,0.00025136,3]
[356106916,1741909874849,-1011.7,0.00025136,3]
[356106917,1741909874860,-500.0,0.00025136,3]
[356106918,1741909874870,-222.15025898,0.00025136,3]
[356106919,1741909874880,-1446.01,0.00025136,3]
[356106920,1741909875042,-509.81,0.00025136,3]
[356106921,1741909875053,-500.0,0.00025136,3]
[356106922,1741909875063,-506.61,0.00025136,3]
[356106923,1741909875073,-1624.15,0.00025136,3]
[356106924,1741909875083,-1714.12,0.00025136,3]
[356106925,1741909875092,-171.68397028,0.00025136,3]
[356106926,1741909875102,-1542.57,0.00025136,3]
[356106927,1741909875112,-679.28,0.00025136,3]
[356106928,1741909875121,-511.82,0.00025136,3]
[356106929,1741909875131,-732.6,0.00025136,3]
[356106930,1741909875142,-509.45,0.00025136,3]
[356106931,1741909875152,-528.56,0.00025136,3]
[356106932,1741909875162,-803.83,0.00025136,3]
[356106933,1741909875171,-500.0,0.00025136,3]
[356106934,1741909875181,-500.0,0.00025136,3]
[356106935,1741909875190,-500.0,0.00025136,3]
[356106936,1741909875199,-1621.13,0.00025136,3]
[356106937,1741909875210,-500.0,0.00025136,3]
[356106938,1741909875220,-684.37,0.00025136,3]
[356106939,1741909875230,-500.0,0.00025136,3]
[356106940,1741909875240,-3776.5,0.00025136,3]
[356106941,1741909875250,-292.27835134,0.00025136,3]
[356106942,1741909875260,-500.0,0.00025136,3]
[356106943,1741909875270,-500.0,0.00025136,3]
[356106944,1741909875280,-568.39,0.00025136,3]
[356106945,1741909875290,-500.0,0.00025136,3]
[356106946,1741909875299,-500.0,0.00025136,3]
[356106947,1741909875309,-500.0,0.00025136,3]
[356106948,1741909875318,-363.72331239,0.00025136,3]
[356106949,1741909875329,-500.0,0.00025136,3]
[356106950,1741909875339,-1817.75,0.00025136,3]
[356106951,1741909875349,-1602.7,0.00025136,3]
[356106952,1741909875358,-500.0,0.00025136,3]
[356106953,1741909875368,-500.0,0.00025136,3]
[356106954,1741909875377,-938.17,0.00025136,3]
[356106955,1741909875387,-1921.94,0.00025136,3]
[356106956,1741909875397,-500.0,0.00025136,3]
[356106957,1741909875407,-500.0,0.00025136,3]
[356106958,1741909875416,-498.31955937,0.00025136,3]
[356106959,1741909875427,-515.11,0.00025136,3]
[356106960,1741909875438,-500.0,0.00025136,3]
[356106961,1741909875448,-500.0,0.00025136,3]
[356106962,1741909875458,-519.89,0.00025136,3]
[356106963,1741909875468,-547.45,0.00025136,3]
[356106964,1741909875478,-1144.38,0.00025136,3]
[356106965,1741909875488,-1019.22,0.00025136,3]
[356106966,1741909875498,-500.0,0.00025136,3]
[356106967,1741909875507,-500.0,0.00025136,3]
[356106968,1741909875521,-500.0,0.00025136,3]
[356106969,1741909875532,-742.8,0.00025136,3]
[356106970,1741909875542,-501.97,0.00025136,3]
[356106971,1741909875552,-500.0,0.00025136,3]
[356106972,1741909875561,-500.0,0.00025136,3]
[356106973,1741909875571,-947.29,0.00025136,3]
[356106974,1741909875580,-1068.83,0.00025136,3]
[356106975,1741909875589,-500.0,0.00025136,3]
[356106976,1741909875599,-500.0,0.00025136,3]
[356106977,1741909875609,-1182.53,0.00025136,3]
[356106978,1741909875619,-500.0,0.00025136,3]
[356106979,1741909875628,-1076.88,0.00025136,3]
[356106980,1741909875638,-500.0,0.00025136,3]
[356106981,1741909875647,-438.45101399,0.00025136,2]
[356106982,1741909875656,-1771.49,0.00025162,3]
[356106983,1741909875666,-554.98919241,0.00025162,3]
[356106984,1741909875675,-1290.76,0.00025162,3]
[356106985,1741909875686,-559.65,0.00025162,3]
[356106986,1741909875696,-500.0,0.00025162,3]
[356106987,1741909875706,-1582.8,0.00025162,3]
[356106988,1741909875716,-500.0,0.00025162,3]
[356106989,1741909875726,-500.0,0.00025162,3]
[356106990,1741909875736,-500.0,0.00025162,3]
[356106991,1741909875746,-539.53971855,0.00025162,3]
[356106992,1741909875755,-628.37,0.00025162,3]
[356106993,1741909875764,-500.0,0.00025162,3]
[356106994,1741909875774,-500.0,0.00025162,3]
[356106995,1741909875784,-500.0,0.00025162,3]
[356106996,1741909875794,-534.48,0.00025162,3]
[356106997,1741909875804,-1267.72,0.00025162,3]
[356106998,1741909875814,-1652.9,0.00025162,3]
[356106999,1741909875823,-500.0,0.00025162,3]
[356107000,1741909875833,-2343.56,0.00025162,3]
[356107001,1741909875843,-534.22,0.00025162,3]
[356107002,1741909875853,-855.84,0.00025162,3]
[356107003,1741909875863,-1751.29,0.00025162,3]
[356107004,1741909875873,-521.41,0.00025162,3]
[356107005,1741909875883,-1817.04,0.00025162,3]
[356107006,1741909875892,-500.0,0.00025162,3]
[356107007,1741909875902,-500.0,0.00025162,3]
[356107008,1741909875912,-1529.79,0.00025162,3]
[356107009,1741909875921,-626.51,0.00025162,3]
[356107010,1741909875930,-500.0,0.00025162,3]
[356107011,1741909875939,-500.0,0.00025162,3]
[356107012,1741909875948,-647.08,0.00025162,3]
[356107013,1741909875960,-1836.79,0.00025162,3]
[356107014,1741909875970,-500.0,0.00025162,3]
[356107015,1741909875980,-500.0,0.00025162,3]
[356107016,1741909875990,-2784.94,0.00025162,3]
[356107017,1741909876001,-972.39,0.00025162,3]
[356107018,1741909876010,-1153.097042,0.00025162,3]
[356107019,1741909876020,-950.08,0.00025162,3]
[356107020,1741909876030,-663.57,0.00025162,3]
[356107021,1741909876040,-1612.27,0.00025162,3]
[356107022,1741909876053,-1194.86,0.00025162,3]
[356107023,1741909876074,-366.121728,0.00025162,3]
[356107024,1741909876089,-542.19,0.00025162,3]
[356107025,1741909876109,-500.0,0.00025162,3]
[356107026,1741909876126,-632.82,0.00025162,3]
[356107027,1741909876142,-503.16,0.00025162,3]
[356107028,1741909876162,-500.0,0.00025162,3]
[356107029,1741909876184,-152.872762,0.00025162,3]
[356107030,1741909876202,-500.0,0.00025162,3]
[356107031,1741909876223,-500.0,0.00025162,3]
[356107032,1741909876243,-686.97,0.00025162,3]
[356107033,1741909876263,-1718.94,0.00025162,3]
[356107034,1741909876276,-593.31,0.00025162,3]
[356107035,1741909876294,-1023.55,0.00025162,3]
[356107036,1741909876307,-1537.99,0.00025162,3]
[356107037,1741909876324,-500.0,0.00025162,3]
[356107038,1741909876339,-223.68847475,0.00025162,3]
[356107039,1741909876356,-500.0,0.00025162,3]
[356107040,1741909876372,-2081.77,0.00025162,3]
[356107041,1741909876387,-595.3,0.00025162,3]
[356107042,1741909876403,-500.0,0.00025162,3]
[356107043,1741909876419,-500.0,0.00025162,3]
[356107044,1741909876436,-2182.31,0.00025162,3]
[356107045,1741909876452,-500.0,0.00025162,3]
[356107046,1741909876468,-1551.28,0.00025162,3]
[356107047,1741909876485,-500.0,0.00025162,3]
[356107048,1741909876503,-705.21,0.00025162,3]
[356107049,1741909876520,-500.0,0.00025162,3]
[356107050,1741909876537,-500.0,0.00025162,3]
[356107051,1741909876553,-513.62,0.00025162,3]
[356107052,1741909876570,-575.64,0.00025162,3]
[356107053,1741909876586,-1703.64,0.00025162,3]
[356107054,1741909876603,-500.0,0.00025162,3]
[356107055,1741909876619,-500.0,0.00025162,3]
[356107056,1741909876635,-500.0,0.00025162,3]
[356107057,1741909876651,-500.0,0.00025162,3]
[356107058,1741909876667,-3566.18,0.00025162,2]
[356107059,1741909876684,-500.0,0.00025162,3]
[356107060,1741909876701,-500.0,0.00025162,3]
[356107061,1741909876717,-2647.01,0.00025162,3]
[356107062,1741909876734,-694.85,0.00025162,3]
[356107063,1741909876750,-1632.96,0.00025162,3]
[356107064,1741909876767,-500.0,0.00025162,3]
[356107065,1741909876782,-1051.26,0.00025162,3]
[356107066,1741909876797,-703.55,0.00025162,3]
[356107067,1741909876812,-500.0,0.00025162,3]
[356107068,1741909876828,-500.0,0.00025162,3]
[356107069,1741909876848,-500.0,0.00025162,3]
[356107070,1741909876863,-1122.02,0.00025162,3]
[356107071,1741909876878,-556.78919176,0.00025162,3]
[356107072,1741909876893,-1030.95,0.00025162,3]
[356107073,1741909876908,-500.0,0.00025162,3]
[356107074,1741909876923,-547.84,0.00025162,3]
[356107075,1741909876938,-732.74,0.00025162,3]
[356107076,1741909876953,-500.0,0.00025162,3]
[356107077,1741909876969,-685.17,0.00025162,3]
[356107078,1741909876983,-500.0,0.00025162,3]
[356107079,1741909876998,-636.55,0.00025162,3]
[356107080,1741909877013,-500.0,0.00025162,3]
[356107081,1741909877028,-500.0,0.00025162,3]
[356107082,1741909877042,-760.24,0.00025162,3]
[356107083,1741909877057,-500.0,0.00025162,3]
[356107084,1741909877073,-666.39,0.00025162,3]
[356107085,1741909877087,-1136.63,0.00025162,3]
[356107086,1741909877102,-454.76075279,0.00025163,3]
[356107087,1741909877117,-500.0,0.00025163,3]
[356107088,1741909877131,-500.0,0.00025163,3]
[356107089,1741909877146,-500.0,0.00025163,3]
[356107090,1741909877160,-500.0,0.00025163,3]
[356107091,1741909877174,-500.0,0.00025163,3]
[356107092,1741909877189,-500.0,0.00025163,3]
[356107093,1741909877203,-1322.8,0.00025163,3]
[356107094,1741909877217,-500.0,0.00025163,3]
[356107095,1741909877232,-500.0,0.00025163,3]
[356107096,1741909877247,-2009.2,0.00025163,3]
[356107097,1741909877262,-1045.89,0.00025163,3]
[356107098,1741909877275,-500.0,0.00025163,3]
[356107099,1741909877290,-543.85699546,0.00025163,3]
[356107100,1741909877304,-500.0,0.00025163,3]
[356107101,1741909877318,-500.0,0.00025163,3]
[356107102,1741909877334,-500.0,0.00025163,3]
[356107103,1741909877348,-500.0,0.00025163,3]
[356107104,1741909877363,-516.89,0.00025163,3]
[356107105,1741909877379,-500.0,0.00025163,3]
[356107106,1741909877393,-500.0,0.00025163,3]
[356107107,1741909877408,-500.0,0.00025163,3]
[356107108,1741909877422,-520.87,0.00025163,3]
[356107109,1741909877438,-549.11,0.00025163,3]
[356107110,1741909877452,-500.0,0.00025163,3]
[356107111,1741909877466,-500.0,0.00025163,3]
[356107112,1741909877480,-500.0,0.00025163,2]
[356107113,1741909877494,-1886.33,0.00025163,3]
[356107114,1741909877510,-500.0,0.00025163,3]
[356107115,1741909877524,-500.0,0.00025163,3]
[356107116,1741909877538,-1603.3,0.00025163,3]
[356107117,1741909877553,-507.55,0.00025163,3]
[356107118,1741909877568,-500.0,0.00025163,3]
[356107119,1741909877582,-500.0,0.00025163,3]
[356107120,1741909877597,-500.0,0.00025163,3]
[356107121,1741909877612,-500.0,0.00025163,3]
[356107122,1741909877627,-500.0,0.00025163,3]
[356107123,1741909877640,-500.0,0.00025163,3]
[356107124,1741909877655,-1799.26,0.00025163,3]
[356107125,1741909877875,-500.0,0.00025163,3]
[356107126,1741909877884,-500.0,0.00025163,3]
[356107127,1741909877893,-547.6634417,0.00025163,3]
[356107128,1741909877903,-1038.47,0.00025163,3]
[356107129,1741909877912,-500.0,0.00025163,3]
[356107130,1741909877921,-1529.19,0.00025163,3]
[356107131,1741909877930,-1146.19,0.00025163,3]
[356107132,1741909877939,-1230.07,0.00025163,3]
[356107133,1741909877948,-500.0,0.00025163,3]
[356107134,1741909877957,-766.89,0.00025163,3]
[356107135,1741909877967,-828.77,0.00025163,3]
[356107136,1741909877976,-500.0,0.00025163,3]
[356107137,1741909877986,-974.37,0.00025163,3]
[356107138,1741909877996,-878.52,0.00025163,3]
[356107139,1741909878005,-630.26443926,0.00025163,3]
[356107140,1741909878015,-500.0,0.00025163,3]
[356107141,1741909878024,-581.67,0.00025163,3]
[356107142,1741909878033,-500.0,0.00025163,3]
[356107143,1741909878042,-3568.36,0.00025163,3]
[356107144,1741909878051,-2023.2,0.00025163,3]
[356107145,1741909878061,-2022.67,0.00025163,3]
[356107146,1741909878070,-500.29600059,0.00025163,3]
[356107147,1741909878080,-1071.52,0.00025163,3]
[356107148,1741909878089,-500.0,0.00025163,3]
[356107149,1741909878099,-1318.79,0.00025163,3]
[356107150,1741909878108,-817.82,0.00025163,3]
[356107151,1741909878118,-1858.28,0.00025163,3]
[356107152,1741909878127,-422.79474623,0.00025163,3]
[356107153,1741909878137,-1341.33,0.00025163,3]
[356107154,1741909878146,-500.0,0.00025163,3]
[356107155,1741909878156,-1345.3,0.00025163,3]
[356107156,1741909878165,-500.0,0.00025163,3]
[356107157,1741909878174,-500.0,0.00025163,3]
[356107158,1741909878183,-2980.86,0.00025163,3]
[356107159,1741909878192,-1005.07,0.00025163,3]
[356107160,1741909878201,-2009.8,0.00025163,3]
[356107161,1741909878210,-500.0,0.00025163,3]
[356107162,1741909878219,-500.0,0.00025163,3]
[356107163,1741909878229,-500.0,0.00025163,3]
[356107164,1741909878238,-1531.97,0.00025163,3]
[356107165,1741909878247,-647.14,0.00025163,3]
[356107166,1741909878257,-1389.09,0.00025163,3]
[356107167,1741909878266,-558.82,0.00025163,3]
[356107168,1741909878275,-535.09,0.00025163,3]
[356107169,1741909878284,-1705.22,0.00025163,3]
[356107170,1741909878295,-767.63,0.00025163,3]
[356107171,1741909878304,-638.89,0.00025163,3]
[356107172,1741909878313,-573.45,0.00025163,3]
[356107173,1741909878322,-4252.22,0.00025163,3]
[356107174,1741909878331,-866.68,0.00025163,3]
[356107175,1741909878341,-957.24,0.00025163,3]
[356107176,1741909878350,-813.96,0.00025163,3]
[356107177,1741909878359,-1909.43,0.00025163,3]
[356107178,1741909878368,-1214.54,0.00025163,3]
[356107179,1741909878378,-957.65,0.00025163,3]
[356107180,1741909878387,-500.0,0.00025163,3]
[356107181,1741909878396,-500.0,0.00025163,3]
[356107182,1741909878406,-1011.7,0.00025163,3]
[356107183,1741909878415,-509.81,0.00025163,3]
[356107184,1741909878424,-705.12,0.00025163,3]
[356107185,1741909878435,-1624.15,0.00025163,3]
[356107186,1741909878445,-1714.12,0.00025163,3]
[356107187,1741909878454,-581.8,0.00025163,3]
[356107188,1741909878463,-511.82,0.00025163,3]
[356107189,1741909878474,-732.6,0.00025163,3]
[356107190,1741909878484,-1223.35,0.00025163,3]
[356107191,1741909878493,-500.0,0.00025163,3]
[356107192,1741909878503,-1621.13,0.00025163,3]
[356107193,1741909878513,-684.37,0.00025163,3]
[356107194,1741909878523,-2382.43,0.00025163,3]
[356107195,1741909878533,-500.0,0.00025163,3]
[356107196,1741909878543,-568.39,0.00025163,3]
[356107197,1741909878552,-1633.72,0.00025163,3]
[356107198,1741909878563,-1670.95,0.00025163,3]
[356107199,1741909878572,-500.0,0.00025163,3]
[356107200,1741909878582,-500.0,0.00025163,3]
[356107201,1741909878591,-1602.7,0.00025163,3]
[356107202,1741909878600,-500.0,0.00025163,3]
[356107203,1741909878611,-1726.02,0.00025163,3]
[356107204,1741909878620,-500.0,0.00025163,3]
[356107205,1741909878630,-500.0,0.00025163,3]
[356107206,1741909878639,-1847.97,0.00025163,3]
[356107207,1741909878649,-1144.38,0.00025163,3]
[356107208,1741909878659,-1019.22,0.00025163,3]
[356107209,1741909878668,-501.97,0.00025163,3]
[356107210,1741909878679,-500.0,0.00025163,3]
[356107211,1741909878690,-1182.53,0.00025163,3]
[356107212,1741909878700,-1076.88,0.00025163,3]
[356107213,1741909878710,-151.0,0.00025164,7]
[356107214,1741909878719,-151.0,0.00025164,7]
[356107215,1741909878729,-151.0,0.00025164,7]
[356107216,1741909878739,-500.0,0.00025164,3]
[356107217,1741909878750,-500.0,0.00025164,3]
[356107218,1741909878760,-1821.49,0.00025164,3]
[356107219,1741909878769,-1637.021766,0.00025164,7]
[356107220,1741909878780,-500.0,0.00025164,3]
[356107221,1741909878789,-1637.021766,0.00025164,7]
[356107222,1741909878799,-534.21,0.00025164,3]
[356107223,1741909878808,-721.07,0.00025164,3]
[356107224,1741909878818,-500.0,0.00025164,3]
[356107225,1741909878828,-835.2,0.00025164,3]
[356107226,1741909878837,-500.0,0.00025164,3]
[356107227,1741909878847,-640.39,0.00025164,3]
[356107228,1741909878857,-1649.68,0.00025164,3]
[356107229,1741909878867,-500.0,0.00025164,3]
[356107230,1741909878877,-500.0,0.00025164,3]
[356107231,1741909878887,-151.0,0.00025164,7]
[356107232,1741909878897,-602.71,0.00025164,3]
[356107233,1741909878906,-596.5114548,0.00025164,3]
[356107234,1741909878916,-185.452921,0.00025164,7]
[356107235,1741909878925,-500.0,0.00025164,3]
[356107236,1741909878935,-185.452921,0.00025164,7]
[356107237,1741909878944,-500.0,0.00025164,3]
[356107238,1741909878955,-500.0,0.00025164,3]
[356107239,1741909878965,-500.0,0.00025164,3]
[356107240,1741909878975,-500.0,0.00025164,3]
[356107241,1741909878984,-500.0,0.00025164,3]
[356107242,1741909878994,-363.544473,0.00025164,7]
[356107243,1741909879004,-363.544473,0.00025164,7]
[356107244,1741909879014,-500.0,0.00025164,3]
[356107245,1741909879024,-938.73,0.00025164,3]
[356107246,1741909879034,-717.27,0.00025164,3]
[356107247,1741909879043,-1058.89,0.00025164,3]
[356107248,1741909879052,-942.53,0.00025164,3]
[356107249,1741909879062,-578.57,0.00025164,3]
[356107250,1741909879072,-909.28,0.00025164,3]
[356107251,1741909879081,-618.61,0.00025164,3]
[356107252,1741909879091,-500.0,0.00025164,3]
[356107253,1741909879100,-500.0,0.00025164,3]
[356107254,1741909879110,-165.00327011,0.00025164,3]
[356107255,1741909879119,-500.0,0.00025164,3]
[356107256,1741909879128,-500.0,0.00025164,3]
[356107257,1741909879137,-933.18,0.00025164,3]
[356107258,1741909879147,-500.0,0.00025164,3]
[356107259,1741909879157,-610.2,0.00025164,3]
[356107260,1741909879167,-191.184227,0.00025164,7]
[356107261,1741909879176,-500.0,0.00025164,3]
[356107262,1741909879186,-191.184227,0.00025164,7]
[356107263,1741909879196,-262.17523,0.00025164,7]
[356107264,1741909879205,-500.0,0.00025164,3]
[356107265,1741909879215,-262.17523,0.00025164,7]
[356107266,1741909879224,-157.966654,0.00025164,7]
[356107267,1741909879234,-500.0,0.00025164,3]
[356107268,1741909879243,-157.966654,0.00025164,7]
[356107269,1741909879253,-500.0,0.00025164,3]
[356107270,1741909879263,-10000.0,0.00025164,7]
[356107271,1741909879272,-553.33260377,0.00025164,3]
[356107272,1741909879282,-500.0,0.00025164,3]
[356107273,1741909879292,-500.0,0.00025164,3]
[356107274,1741909879302,-485.74582643,0.00025164,3]
[356107275,1741909879312,-500.0,0.00025164,3]
[356107276,1741909879321,-10000.0,0.00025164,7]
[356107277,1741909879331,-632.608609,0.00025164,7]
[356107278,1741909879340,-500.0,0.00025164,3]
[356107279,1741909879349,-10000.0,0.00025164,7]
[356107280,1741909879358,-632.608607,0.00025164,7]
[356107281,1741909879367,-10000.0,0.00025164,7]
[356107282,1741909879377,-500.0,0.00025164,3]
[356107283,1741909879386,-10000.0,0.00025164,7]
[356107284,1741909879395,-2202.251602,0.00025164,7]
[356107285,1741909879404,-10000.0,0.00025164,7]
[356107286,1741909879413,-1597.02,0.00025164,3]
[356107287,1741909879423,-500.0,0.00025164,3]
[356107288,1741909879435,-2202.251602,0.00025164,7]
[356107289,1741909879445,-500.0,0.00025164,3]
[356107290,1741909879454,-1208.71,0.00025164,3]
[356107291,1741909879464,-500.0,0.00025164,3]
[356107292,1741909879474,-961.24,0.00025164,3]
[356107293,1741909879483,-500.0,0.00025164,3]
[356107294,1741909879492,-500.0,0.00025164,3]
[356107295,1741909879502,-500.0,0.00025164,3]
[356107296,1741909879513,-500.0,0.00025164,3]
[356107297,1741909879523,-945.98,0.00025164,3]
[356107298,1741909879532,-500.0,0.00025164,3]
[356107299,1741909879542,-500.0,0.00025164,3]
[356107300,1741909879551,-500.0,0.00025164,3]
[356107301,1741909879561,-500.0,0.00025164,3]
[356107302,1741909879570,-599.05,0.00025164,3]
[356107303,1741909879579,-500.0,0.00025164,3]
[356107304,1741909879589,-500.0,0.00025164,3]
[356107305,1741909879599,-500.0,0.00025164,3]
[356107306,1741909879608,-500.0,0.00025164,3]
[356107307,1741909879618,-524.04,0.00025164,3]
[356107308,1741909879627,-500.0,0.00025164,3]
[356107309,1741909879637,-500.0,0.00025164,3]
[356107310,1741909879647,-1162.99,0.00025164,3]
[356107311,1741909879657,-151.0,0.00025164,7]
[356107312,1741909879666,-1064.48,0.00025164,3]
[356107313,1741909879676,-500.0,0.00025164,3]
[356107314,1741909879686,-500.0,0.00025164,3]
[356107315,1741909879695,-1104.79,0.00025164,3]
[356107316,1741909879705,-1347.3,0.00025164,2]
[356107317,1741909879716,-500.0,0.00025164,3]
[356107318,1741909879725,-500.0,0.00025164,3]
[356107319,1741909879734,-500.0,0.00025164,3]
[356107320,1741909879744,-500.0,0.00025164,3]
[356107321,1741909879754,-500.0,0.00025164,3]
[356107322,1741909879763,-1177.15,0.00025164,3]
[356107323,1741909879773,-1278.64,0.00025164,3]
[356107324,1741909879783,-231.2041933,0.00025164,3]
[356107325,1741909879792,-1471.45,0.00025164,3]
[356107326,1741909879802,-500.0,0.00025164,3]
[356107327,1741909879811,-500.0,0.00025164,3]
[356107328,1741909879821,-500.0,0.00025164,3]
[356107329,1741909879830,-1032.31,0.00025164,3]
[356107330,1741909879839,-500.0,0.00025164,3]
[356107331,1741909879849,-1030.03,0.00025164,3]
[356107332,1741909879858,-500.0,0.00025164,3]
[356107333,1741909879868,-500.0,0.00025164,3]
[356107334,1741909879878,-500.0,0.00025164,3]
[356107335,1741909879887,-500.0,0.00025164,3]
[356107336,1741909879897,-361.408255,0.00025164,7]
[356107337,1741909879906,-361.408261,0.00025164,7]
[356107338,1741909879916,-583.44,0.00025164,3]
[356107339,1741909879926,-500.0,0.00025164,3]
[356107340,1741909879937,-531.32,0.00025164,3]
[356107341,1741909879946,-500.0,0.00025164,3]
[356107342,1741909879956,-500.0,0.00025164,3]
[356107343,1741909879967,-500.0,0.00025164,3]
[356107344,1741909879977,-500.0,0.00025164,3]
[356107345,1741909879987,-665.05,0.00025164,3]
[356107346,1741909879996,-500.0,0.00025164,3]
[356107347,1741909880006,-500.0,0.00025164,3]
[356107348,1741909880016,-1399.34,0.00025164,3]
[356107349,1741909880026,-500.0,0.00025164,3]
[356107350,1741909880036,-500.0,0.00025164,3]
[356107351,1741909880048,-500.0,0.00025164,3]
[356107352,1741909880058,-1162.37,0.00025164,3]
[356107353,1741909880067,-503.04,0.00025164,3]
[356107354,1741909880077,-637.46,0.00025164,3]
[356107355,1741909880087,-500.0,0.00025164,3]
[356107356,1741909880097,-500.0,0.00025164,3]
[356107357,1741909880107,-500.0,0.00025164,3]
[356107358,1741909880117,-500.0,0.00025164,3]
[356107359,1741909880284,-1000.0,0.00025164,60]
[356107360,1741909880295,-500.0,0.00025164,3]
[356107361,1741909880305,-561.19697503,0.00025164,3]
[356107362,1741909880315,-500.0,0.00025164,3]
[356107363,1741909880325,-500.0,0.00025164,3]
[356107364,1741909880334,-1488.89,0.00025164,3]
[356107365,1741909880344,-509.79,0.00025164,3]
[356107366,1741909880354,-500.0,0.00025164,3]
[356107367,1741909880364,-500.0,0.00025164,3]
[356107368,1741909880373,-500.0,0.00025164,3]
[356107369,1741909880383,-1616.56,0.00025164,3]
[356107370,1741909880393,-500.0,0.00025164,3]
[356107371,1741909880403,-500.0,0.00025164,3]
[356107372,1741909880412,-500.0,0.00025164,3]
[356107373,1741909880422,-503.06,0.00025164,3]
[356107374,1741909880435,-566.59,0.00025164,3]
[356107375,1741909880444,-577.64432476,0.00025164,3]
[356107376,1741909880454,-877.86,0.00025164,3]
[356107377,1741909880465,-1515.34,0.00025164,3]